[Event "Early-Titled-Tuesday-Blitz-May-28-2024"]
[Site "Chess.com"]
[Date "2024.05.28"]
[Round "4"]
[White "BeautiFullMindChess"]
[Black "RobertJFischer71"]
[Result "0-1"]
[WhiteElo "2359"]
[BlackElo "2644"]
[TimeControl "180+1"]
[EndTime "8:40:18 PDT"]
[Termination "RobertJFischer71 won on time"]

1. e4 {[%clk 0:03:00.9]} 1... e5 {[%clk 0:02:59.9]} 2. Nf3 {[%clk 0:02:59.4]}
2... Nc6 {[%clk 0:03:00.1]} 3. d4 {[%clk 0:03:00.1]} 3... exd4 {[%clk
0:03:00.4]} 4. Nxd4 {[%clk 0:03:01]} 4... Nf6 {[%clk 0:03:00.9]} 5. Nxc6 {[%clk
0:03:00.9]} 5... bxc6 {[%clk 0:03:01.8]} 6. e5 {[%clk 0:03:01.6]} 6... Qe7
{[%clk 0:03:02.5]} 7. Qe2 {[%clk 0:03:00.8]} 7... Nd5 {[%clk 0:03:03.4]} 8. h4
{[%clk 0:03:00.6]} 8... a5 {[%clk 0:03:02.4]} 9. Nd2 {[%clk 0:02:49.2]} 9... Qe6
{[%clk 0:02:56.3]} 10. g3 {[%clk 0:02:48.9]} 10... Ba6 {[%clk 0:02:54.2]} 11. c4
{[%clk 0:02:48.5]} 11... Nb4 {[%clk 0:02:36.8]} 12. Kd1 {[%clk 0:02:33.9]} 12...
d5 {[%clk 0:01:48.9]} 13. a3 {[%clk 0:02:26.8]} 13... dxc4 {[%clk 0:01:48.8]}
14. axb4 {[%clk 0:02:26.9]} 14... Bxb4 {[%clk 0:01:49.7]} 15. Bh3 {[%clk
0:01:36.7]} 15... c3 {[%clk 0:01:15]} 16. Qf3 {[%clk 0:01:16.2]} 16... Qd5
{[%clk 0:00:27.5]} 17. Qxd5 {[%clk 0:01:15.5]} 17... cxd5 {[%clk 0:00:28.4]} 18.
Nf3 {[%clk 0:01:01]} 18... c5 {[%clk 0:00:22]} 19. e6 {[%clk 0:00:51.5]} 19...
f6 {[%clk 0:00:18.3]} 20. bxc3 {[%clk 0:00:44.4]} 20... Bxc3 {[%clk 0:00:18.9]}
21. Rb1 {[%clk 0:00:42.8]} 21... Bb4 {[%clk 0:00:18.9]} 22. Bf4 {[%clk
0:00:40.9]} 22... Ke7 {[%clk 0:00:18.4]} 23. h5 {[%clk 0:00:38.8]} 23... Bd3
{[%clk 0:00:17.8]} 24. Ra1 {[%clk 0:00:35.9]} 24... a4 {[%clk 0:00:15.7]} 25.
Nh4 {[%clk 0:00:35.9]} 25... g5 {[%clk 0:00:12.3]} 26. Nf5+ {[%clk 0:00:35.2]}
26... Bxf5 {[%clk 0:00:12]} 27. Bxf5 {[%clk 0:00:35]} 27... gxf4 {[%clk
0:00:12.7]} 28. gxf4 {[%clk 0:00:33.6]} 28... a3 {[%clk 0:00:13.3]} 29. Kc2
{[%clk 0:00:31.8]} 29... c4 {[%clk 0:00:11.1]} 30. Rhg1 {[%clk 0:00:18.7]} 30...
Rhg8 {[%clk 0:00:10.8]} 31. Rxg8 {[%clk 0:00:14.7]} 31... Rxg8 {[%clk
0:00:11.7]} 32. Rb1 {[%clk 0:00:15.2]} 32... Rb8 {[%clk 0:00:09.5]} 33. Bxh7
{[%clk 0:00:13.2]} 33... d4 {[%clk 0:00:09.3]} 34. Bf5 {[%clk 0:00:11.1]} 34...
d3+ {[%clk 0:00:07.6]} 35. Bxd3 {[%clk 0:00:10.5]} 35... cxd3+ {[%clk
0:00:08.5]} 36. Kxd3 {[%clk 0:00:11.3]} 36... Bd6 {[%clk 0:00:07.9]} 37. Ra1
{[%clk 0:00:10.8]} 37... Rb3+ {[%clk 0:00:06.6]} 38. Kc4 {[%clk 0:00:09.9]}
38... Rh3 {[%clk 0:00:06.5]} 39. f5 {[%clk 0:00:08.7]} 39... Rxh5 {[%clk
0:00:06.8]} 40. f3 {[%clk 0:00:07.4]} 40... Rxf5 {[%clk 0:00:07.1]} 41. Kd4
{[%clk 0:00:07.4]} 41... Be5+ {[%clk 0:00:04.4]} 42. Ke4 {[%clk 0:00:08.3]}
42... Bxa1 {[%clk 0:00:04.8]} 43. Kxf5 {[%clk 0:00:09]} 43... a2 {[%clk
0:00:05.2]} 44. f4 {[%clk 0:00:09.7]} 44... Bb2 {[%clk 0:00:05.2]} 45. Kg6
{[%clk 0:00:10.6]} 45... a1=Q {[%clk 0:00:05.7]} 46. f5 {[%clk 0:00:11.5]} 46...
Qg1+ {[%clk 0:00:06]} 47. Kh7 {[%clk 0:00:11.1]} 47... Qf2 {[%clk 0:00:06.9]}
48. Kg7 {[%clk 0:00:11.7]} 48... Qd4 {[%clk 0:00:07.8]} 49. Kg6 {[%clk
0:00:12.2]} 49... Qg4+ {[%clk 0:00:08.2]} 50. Kh6 {[%clk 0:00:12.1]} 50... Qxf5
{[%clk 0:00:09.1]} 0-1

[Event "Early-Titled-Tuesday-Blitz-May-28-2024"]
[Site "Chess.com"]
[Date "2024.05.28"]
[Round "4"]
[White "McCarthyStone"]
[Black "Kirill_Klukin"]
[Result "1-0"]
[WhiteElo "2462"]
[BlackElo "2883"]
[TimeControl "180+1"]
[EndTime "8:40:19 PDT"]
[Termination "McCarthyStone won by resignation"]

1. b3 {[%clk 0:03:00.9]} 1... Nf6 {[%clk 0:02:59.2]} 2. Bb2 {[%clk 0:03:01.8]}
2... d5 {[%clk 0:03:00]} 3. Nf3 {[%clk 0:03:01.7]} 3... Bf5 {[%clk 0:03:00.3]}
4. e3 {[%clk 0:03:02.1]} 4... e6 {[%clk 0:03:00.6]} 5. d3 {[%clk 0:03:02.7]}
5... Nbd7 {[%clk 0:02:59.7]} 6. g3 {[%clk 0:03:03]} 6... h6 {[%clk 0:03:00]} 7.
Bg2 {[%clk 0:03:03.3]} 7... Be7 {[%clk 0:03:00.4]} 8. O-O {[%clk 0:03:03.9]}
8... O-O {[%clk 0:03:01.2]} 9. Nbd2 {[%clk 0:03:04.4]} 9... c6 {[%clk
0:02:59.8]} 10. Qe2 {[%clk 0:03:03.9]} 10... Bh7 {[%clk 0:03:00.1]} 11. e4
{[%clk 0:03:03.7]} 11... Nc5 {[%clk 0:02:46.2]} 12. Ne5 {[%clk 0:03:02.8]} 12...
a5 {[%clk 0:02:43.3]} 13. a4 {[%clk 0:03:02.3]} 13... Qc7 {[%clk 0:02:43.3]} 14.
f4 {[%clk 0:03:00.3]} 14... dxe4 {[%clk 0:02:38.2]} 15. dxe4 {[%clk 0:02:57.2]}
15... Rad8 {[%clk 0:02:33.6]} 16. Kh1 {[%clk 0:02:26.8]} 16... Nfd7 {[%clk
0:01:51.6]} 17. Ng4 {[%clk 0:02:18.2]} 17... f5 {[%clk 0:01:25.9]} 18. exf5
{[%clk 0:02:05.6]} 18... Bxf5 {[%clk 0:01:26]} 19. Nc4 {[%clk 0:02:00.8]} 19...
Nf6 {[%clk 0:00:51.8]} 20. Nge5 {[%clk 0:01:52]} 20... Be4 {[%clk 0:00:34]} 21.
Rae1 {[%clk 0:01:50.1]} 21... Rfe8 {[%clk 0:00:32.6]} 22. Nf3 {[%clk 0:01:40.4]}
22... Bf5 {[%clk 0:00:28.6]} 23. Be5 {[%clk 0:01:31.4]} 23... Bd6 {[%clk
0:00:16.9]} 24. Nxd6 {[%clk 0:01:31.9]} 24... Rxd6 {[%clk 0:00:16.9]} 25. Bxd6
{[%clk 0:00:59.2]} 25... Qxd6 {[%clk 0:00:17]} 26. Rd1 {[%clk 0:00:59.9]} 26...
Qe7 {[%clk 0:00:17.4]} 27. Rfe1 {[%clk 0:01:00.6]} 27... Nce4 {[%clk 0:00:16.8]}
28. Nd4 {[%clk 0:00:47.2]} 28... Bg4 {[%clk 0:00:15.1]} 29. Bf3 {[%clk
0:00:23.7]} 29... Nc3 {[%clk 0:00:15.1]} 30. Qd3 {[%clk 0:00:19.9]} 30... Bxf3+
{[%clk 0:00:15.4]} 31. Qxf3 {[%clk 0:00:19.5]} 31... Nxd1 {[%clk 0:00:16.3]} 32.
Rxd1 {[%clk 0:00:20.4]} 32... Qc5 {[%clk 0:00:16.7]} 33. c3 {[%clk 0:00:18.3]}
33... Qd5 {[%clk 0:00:16.9]} 34. Kg2 {[%clk 0:00:16.6]} 34... Rd8 {[%clk
0:00:17.1]} 35. Re1 {[%clk 0:00:14.5]} 35... Kf7 {[%clk 0:00:15.2]} 36. Re5
{[%clk 0:00:12.7]} 36... Qxf3+ {[%clk 0:00:15.2]} 37. Kxf3 {[%clk 0:00:13.6]}
37... Rd6 {[%clk 0:00:15.9]} 38. Rxa5 {[%clk 0:00:13.7]} 38... Ke7 {[%clk
0:00:08.8]} 39. Ra7 {[%clk 0:00:13.1]} 39... Rd7 {[%clk 0:00:09.5]} 40. a5
{[%clk 0:00:13.3]} 40... Nd5 {[%clk 0:00:09.8]} 41. a6 {[%clk 0:00:12.5]} 41...
bxa6 {[%clk 0:00:09.1]} 42. Nxc6+ {[%clk 0:00:13.1]} 42... Kd6 {[%clk
0:00:09.8]} 43. Rxd7+ {[%clk 0:00:12.9]} 43... Kxd7 {[%clk 0:00:10.7]} 44. Ne5+
{[%clk 0:00:13.8]} 44... Kd6 {[%clk 0:00:11.2]} 45. c4 {[%clk 0:00:14.1]} 45...
Nb4 {[%clk 0:00:11.5]} 46. Ke4 {[%clk 0:00:13.7]} 46... Nc6 {[%clk 0:00:11.4]}
47. Nxc6 {[%clk 0:00:11.3]} 47... Kxc6 {[%clk 0:00:11.1]} 48. Ke5 {[%clk
0:00:12]} 48... Kd7 {[%clk 0:00:11.8]} 49. b4 {[%clk 0:00:12.5]} 49... Ke7
{[%clk 0:00:11.9]} 50. g4 {[%clk 0:00:12.2]} 50... Kd7 {[%clk 0:00:11.5]} 51. h4
{[%clk 0:00:11.3]} 51... Ke7 {[%clk 0:00:11.4]} 52. h5 {[%clk 0:00:11.9]} 52...
Kd7 {[%clk 0:00:11.2]} 53. f5 {[%clk 0:00:12.3]} 53... exf5 {[%clk 0:00:11.8]}
54. Kxf5 {[%clk 0:00:13.2]} 54... Ke7 {[%clk 0:00:12.6]} 55. Ke5 {[%clk
0:00:13.5]} 55... Kd7 {[%clk 0:00:12.4]} 56. Kd5 {[%clk 0:00:13.9]} 56... Ke7
{[%clk 0:00:12.9]} 1-0

[Event "Early-Titled-Tuesday-Blitz-May-28-2024"]
[Site "Chess.com"]
[Date "2024.05.28"]
[Round "4"]
[White "GambitGiesbergen"]
[Black "Squirlolz"]
[Result "0-1"]
[WhiteElo "2345"]
[BlackElo "2532"]
[TimeControl "180+1"]
[EndTime "8:40:19 PDT"]
[Termination "Squirlolz won by resignation"]

1. a3 {[%clk 0:03:00.4]} 1... f6 {[%clk 0:02:56.2]} 2. e4 {[%clk 0:02:59.2]}
2... Nh6 {[%clk 0:02:55.7]} 3. d4 {[%clk 0:02:55.5]} 3... Nf7 {[%clk 0:02:55.6]}
4. Bc4 {[%clk 0:02:56.1]} 4... e6 {[%clk 0:02:55.3]} 5. Nc3 {[%clk 0:02:53.9]}
5... c6 {[%clk 0:02:54.4]} 6. Bd3 {[%clk 0:02:40.6]} 6... d5 {[%clk 0:02:53.5]}
7. Nf3 {[%clk 0:02:37.2]} 7... Bd6 {[%clk 0:02:53.3]} 8. O-O {[%clk 0:02:35.6]}
8... O-O {[%clk 0:02:53.2]} 9. Re1 {[%clk 0:02:36.2]} 9... Nd7 {[%clk
0:02:52.3]} 10. e5 {[%clk 0:02:15.8]} 10... fxe5 {[%clk 0:02:51.5]} 11. dxe5
{[%clk 0:02:16.1]} 11... Ndxe5 {[%clk 0:02:48.7]} 12. Nxe5 {[%clk 0:02:16]}
12... Nxe5 {[%clk 0:02:45]} 13. Rxe5 {[%clk 0:02:11.2]} 13... Bxe5 {[%clk
0:02:41]} 14. Qh5 {[%clk 0:02:11.7]} 14... Rf5 {[%clk 0:02:04.5]} 15. Bxf5
{[%clk 0:02:10.6]} 15... exf5 {[%clk 0:02:05.4]} 16. Bg5 {[%clk 0:02:10.7]}
16... g6 {[%clk 0:01:31.1]} 17. Qh4 {[%clk 0:01:17.5]} 17... Qc7 {[%clk
0:01:23.6]} 18. Re1 {[%clk 0:01:16.5]} 18... Bd7 {[%clk 0:01:03]} 19. f4 {[%clk
0:01:16.2]} 19... Bd4+ {[%clk 0:00:59.2]} 20. Kh1 {[%clk 0:01:16.3]} 20... Re8
{[%clk 0:01:00]} 21. h3 {[%clk 0:00:51]} 21... Qd6 {[%clk 0:00:41]} 22. Be7
{[%clk 0:00:44.3]} 22... Bf6 {[%clk 0:00:32.7]} 23. Bxf6 {[%clk 0:00:22.8]}
23... Rxe1+ {[%clk 0:00:32.6]} 24. Qxe1 {[%clk 0:00:23.5]} 24... Qxf6 {[%clk
0:00:33.2]} 25. Qf2 {[%clk 0:00:18.5]} 25... b6 {[%clk 0:00:30.1]} 26. Nd1
{[%clk 0:00:18.8]} 26... d4 {[%clk 0:00:29.9]} 27. Qe2 {[%clk 0:00:13.4]} 27...
Qe6 {[%clk 0:00:27.9]} 28. Qd2 {[%clk 0:00:12]} 28... c5 {[%clk 0:00:27.8]} 29.
Nf2 {[%clk 0:00:11.3]} 29... Bc6 {[%clk 0:00:28.3]} 30. Nd3 {[%clk 0:00:12.2]}
30... Qe4 {[%clk 0:00:20]} 31. Ne5 {[%clk 0:00:12]} 31... Bd5 {[%clk 0:00:20.5]}
32. c4 {[%clk 0:00:09.8]} 32... Bb7 {[%clk 0:00:18.8]} 33. Kh2 {[%clk
0:00:05.6]} 33... g5 {[%clk 0:00:18.9]} 34. Kg3 {[%clk 0:00:03.8]} 34... gxf4+
{[%clk 0:00:16.7]} 35. Qxf4 {[%clk 0:00:04.7]} 35... Qxg2+ {[%clk 0:00:16.7]}
36. Kh4 {[%clk 0:00:05.4]} 36... Be4 {[%clk 0:00:13.6]} 37. Nd7 {[%clk
0:00:02.9]} 37... Kf7 {[%clk 0:00:09]} 38. Ne5+ {[%clk 0:00:01.9]} 38... Ke6
{[%clk 0:00:09.3]} 39. Nd3 {[%clk 0:00:01]} 39... Bxd3 {[%clk 0:00:07.9]} 40.
Qh6+ {[%clk 0:00:01.6]} 40... Qg6 {[%clk 0:00:07.3]} 41. Qd2 {[%clk 0:00:01.8]}
41... Qf6+ {[%clk 0:00:06.6]} 42. Kh5 {[%clk 0:00:02.3]} 42... Be4 {[%clk
0:00:06.2]} 43. Qf4 {[%clk 0:00:02]} 43... Qe5 {[%clk 0:00:05.6]} 44. Qh6+
{[%clk 0:00:02]} 44... Qf6 {[%clk 0:00:06.3]} 45. Qf4 {[%clk 0:00:02.6]} 45...
d3 {[%clk 0:00:06.5]} 46. Qc7 {[%clk 0:00:02.1]} 46... Qg6+ {[%clk 0:00:04.7]}
47. Kh4 {[%clk 0:00:02.4]} 47... Qf6+ {[%clk 0:00:04.4]} 48. Kg3 {[%clk
0:00:02.7]} 48... d2 {[%clk 0:00:05.3]} 49. Qc8+ {[%clk 0:00:02.1]} 49... Kf7
{[%clk 0:00:05.9]} 50. Qd7+ {[%clk 0:00:02.3]} 50... Kg6 {[%clk 0:00:06.4]} 51.
Qxd2 {[%clk 0:00:02.9]} 51... Qe5+ {[%clk 0:00:06.5]} 52. Kf2 {[%clk 0:00:01.2]}
52... Qd4+ {[%clk 0:00:06.7]} 53. Ke1 {[%clk 0:00:01.6]} 53... Qxd2+ {[%clk
0:00:06.3]} 54. Kxd2 {[%clk 0:00:02.5]} 54... Kg5 {[%clk 0:00:06.9]} 0-1

[Event "Early-Titled-Tuesday-Blitz-May-28-2024"]
[Site "Chess.com"]
[Date "2024.05.28"]
[Round "4"]
[White "ValeriyGrinev"]
[Black "BardArtem"]
[Result "1-0"]
[WhiteElo "2588"]
[BlackElo "2797"]
[TimeControl "180+1"]
[EndTime "8:40:23 PDT"]
[Termination "ValeriyGrinev won by resignation"]

1. d4 {[%clk 0:03:00.9]} 1... d5 {[%clk 0:02:59.2]} 2. c4 {[%clk 0:03:01]} 2...
c6 {[%clk 0:02:58.3]} 3. e3 {[%clk 0:03:01.2]} 3... Nf6 {[%clk 0:02:57.9]} 4.
Bd3 {[%clk 0:03:01.2]} 4... a6 {[%clk 0:02:55]} 5. Nd2 {[%clk 0:03:00.5]} 5...
b5 {[%clk 0:02:54.6]} 6. b3 {[%clk 0:03:00.4]} 6... Bg4 {[%clk 0:02:51.9]} 7.
Qc2 {[%clk 0:02:59.9]} 7... e6 {[%clk 0:02:49.9]} 8. Ngf3 {[%clk 0:02:57.5]}
8... Nbd7 {[%clk 0:02:49.9]} 9. O-O {[%clk 0:02:57.4]} 9... Bd6 {[%clk
0:02:49.2]} 10. Bb2 {[%clk 0:02:57.3]} 10... O-O {[%clk 0:02:48]} 11. Ne5 {[%clk
0:02:57.4]} 11... Rc8 {[%clk 0:02:32.9]} 12. Nxg4 {[%clk 0:02:50.4]} 12... Nxg4
{[%clk 0:02:33.8]} 13. Bxh7+ {[%clk 0:02:45]} 13... Kh8 {[%clk 0:02:34.3]} 14.
h3 {[%clk 0:02:39.5]} 14... Qh4 {[%clk 0:02:27.1]} 15. Bd3 {[%clk 0:01:59.1]}
15... Ngf6 {[%clk 0:02:21.4]} 16. Nf3 {[%clk 0:01:56.8]} 16... Qh5 {[%clk
0:02:15.4]} 17. Rac1 {[%clk 0:01:52.6]} 17... g5 {[%clk 0:02:03.1]} 18. Ne5
{[%clk 0:01:45.9]} 18... g4 {[%clk 0:01:57.2]} 19. hxg4 {[%clk 0:01:29.2]} 19...
Nxg4 {[%clk 0:01:51.8]} 20. Nxg4 {[%clk 0:01:22.2]} 20... Qxg4 {[%clk
0:01:52.7]} 21. f4 {[%clk 0:01:10.6]} 21... Rg8 {[%clk 0:01:44.1]} 22. Qe2
{[%clk 0:01:05.5]} 22... Qxe2 {[%clk 0:01:32.3]} 23. Bxe2 {[%clk 0:01:06.4]}
23... f5 {[%clk 0:01:31]} 24. Kf2 {[%clk 0:01:01.8]} 24... Nf6 {[%clk
0:01:29.4]} 25. Rh1+ {[%clk 0:00:56]} 25... Kg7 {[%clk 0:01:29.8]} 26. Bf3
{[%clk 0:00:55.8]} 26... Kf7 {[%clk 0:01:22.3]} 27. c5 {[%clk 0:00:43.3]} 27...
Bc7 {[%clk 0:01:16.7]} 28. Bc3 {[%clk 0:00:42.5]} 28... a5 {[%clk 0:01:06.4]}
29. Bd2 {[%clk 0:00:40.5]} 29... Rg7 {[%clk 0:01:03.2]} 30. a3 {[%clk
0:00:39.3]} 30... Ra8 {[%clk 0:00:59.5]} 31. Rh3 {[%clk 0:00:38.1]} 31... Ke7
{[%clk 0:00:57.1]} 32. Rch1 {[%clk 0:00:37.7]} 32... Rag8 {[%clk 0:00:53.3]} 33.
Kf1 {[%clk 0:00:34]} 33... Kd7 {[%clk 0:00:49.7]} 34. Be1 {[%clk 0:00:33.4]}
34... Kc8 {[%clk 0:00:35.4]} 35. Bh4 {[%clk 0:00:32.1]} 35... Ne4 {[%clk
0:00:33.8]} 36. Bxe4 {[%clk 0:00:30.4]} 36... dxe4 {[%clk 0:00:29.9]} 37. Bg5
{[%clk 0:00:30.6]} 37... e5 {[%clk 0:00:21.9]} 38. Rh8 {[%clk 0:00:19.4]} 38...
exd4 {[%clk 0:00:17.1]} 39. Rxg8+ {[%clk 0:00:18.1]} 39... Rxg8 {[%clk 0:00:18]}
40. exd4 {[%clk 0:00:17.2]} 40... Bd8 {[%clk 0:00:08.8]} 41. Rh5 {[%clk
0:00:15.1]} 41... Bxg5 {[%clk 0:00:08.4]} 42. Rxg5 {[%clk 0:00:15.1]} 42... Rxg5
{[%clk 0:00:06.7]} 43. fxg5 {[%clk 0:00:16]} 43... Kd7 {[%clk 0:00:07.3]} 44.
Kf2 {[%clk 0:00:12.9]} 44... f4 {[%clk 0:00:07.1]} 45. g6 {[%clk 0:00:10.6]}
45... Ke6 {[%clk 0:00:07.3]} 46. d5+ {[%clk 0:00:10.8]} 46... cxd5 {[%clk
0:00:06.8]} 47. c6 {[%clk 0:00:11.3]} 47... a4 {[%clk 0:00:01.7]} 48. bxa4
{[%clk 0:00:09.5]} 48... e3+ {[%clk 0:00:02.6]} 49. Ke2 {[%clk 0:00:09.3]} 49...
b4 {[%clk 0:00:01.7]} 50. axb4 {[%clk 0:00:09]} 50... d4 {[%clk 0:00:01.7]} 51.
c7 {[%clk 0:00:08.8]} 51... Kd7 {[%clk 0:00:01.5]} 52. g7 {[%clk 0:00:08.6]} 1-0

[Event "Early-Titled-Tuesday-Blitz-May-28-2024"]
[Site "Chess.com"]
[Date "2024.05.28"]
[Round "4"]
[White "MaiqMaster"]
[Black "Bykov_Egor"]
[Result "1-0"]
[WhiteElo "2466"]
[BlackElo "2651"]
[TimeControl "180+1"]
[EndTime "8:40:24 PDT"]
[Termination "MaiqMaster won by resignation"]

1. e4 {[%clk 0:03:00.9]} 1... c6 {[%clk 0:02:55.9]} 2. Nf3 {[%clk 0:02:57.5]}
2... d5 {[%clk 0:02:56.3]} 3. d3 {[%clk 0:02:58.4]} 3... dxe4 {[%clk 0:02:51.6]}
4. dxe4 {[%clk 0:02:59.2]} 4... Qxd1+ {[%clk 0:02:52]} 5. Kxd1 {[%clk
0:02:53.9]} 5... Bg4 {[%clk 0:02:51.7]} 6. Nd2 {[%clk 0:02:53.8]} 6... Nf6
{[%clk 0:02:44.9]} 7. Be2 {[%clk 0:02:53.4]} 7... Nbd7 {[%clk 0:02:32.2]} 8. Ne1
{[%clk 0:02:52.5]} 8... Bxe2+ {[%clk 0:02:16.2]} 9. Kxe2 {[%clk 0:02:53.4]} 9...
g6 {[%clk 0:02:10.6]} 10. Nd3 {[%clk 0:02:50.5]} 10... Bg7 {[%clk 0:02:10.9]}
11. a4 {[%clk 0:02:49]} 11... O-O-O {[%clk 0:01:56.1]} 12. f3 {[%clk 0:02:46.2]}
12... Ne8 {[%clk 0:01:52.8]} 13. Nc4 {[%clk 0:02:43.9]} 13... Nd6 {[%clk
0:01:40.8]} 14. Nxd6+ {[%clk 0:02:43.9]} 14... exd6 {[%clk 0:01:41.7]} 15. Be3
{[%clk 0:02:44.2]} 15... a6 {[%clk 0:01:38.1]} 16. Rad1 {[%clk 0:02:33.1]} 16...
Rhe8 {[%clk 0:01:36.5]} 17. Kf2 {[%clk 0:02:28.9]} 17... h6 {[%clk 0:01:34.2]}
18. c3 {[%clk 0:02:25.9]} 18... Kc7 {[%clk 0:01:28.4]} 19. h4 {[%clk 0:02:23.3]}
19... f5 {[%clk 0:01:22.3]} 20. exf5 {[%clk 0:02:19.7]} 20... gxf5 {[%clk
0:01:23.2]} 21. a5 {[%clk 0:02:17.1]} 21... Re6 {[%clk 0:01:12.9]} 22. Nf4
{[%clk 0:02:14]} 22... Re5 {[%clk 0:01:12.3]} 23. Bd4 {[%clk 0:02:10.4]} 23...
Rde8 {[%clk 0:00:58.5]} 24. Bxe5 {[%clk 0:02:01.1]} 24... dxe5 {[%clk
0:00:46.9]} 25. Nh5 {[%clk 0:01:53.6]} 25... Bh8 {[%clk 0:00:47.4]} 26. Rhe1
{[%clk 0:01:41.9]} 26... Nc5 {[%clk 0:00:46.7]} 27. Ng3 {[%clk 0:01:37.5]} 27...
Rf8 {[%clk 0:00:44.5]} 28. b4 {[%clk 0:01:25.6]} 28... Ne6 {[%clk 0:00:43]} 29.
Ne2 {[%clk 0:01:19.6]} 29... Bf6 {[%clk 0:00:39.9]} 30. g3 {[%clk 0:01:19]}
30... f4 {[%clk 0:00:39.6]} 31. Nc1 {[%clk 0:00:58.5]} 31... fxg3+ {[%clk
0:00:37.3]} 32. Kxg3 {[%clk 0:00:59.4]} 32... Rg8+ {[%clk 0:00:37.5]} 33. Kh2
{[%clk 0:00:55.2]} 33... Bxh4 {[%clk 0:00:37.7]} 34. Rg1 {[%clk 0:00:54.8]}
34... Rf8 {[%clk 0:00:34.7]} 35. Rg6 {[%clk 0:00:49.8]} 35... Ng5 {[%clk
0:00:28.4]} 36. Rxh6 {[%clk 0:00:42.6]} 36... Nxf3+ {[%clk 0:00:28.6]} 37. Kg2
{[%clk 0:00:38.4]} 37... Bg5 {[%clk 0:00:26.7]} 38. Rh7+ {[%clk 0:00:37.7]}
38... Kc8 {[%clk 0:00:27.1]} 39. Nb3 {[%clk 0:00:31.4]} 39... Bd8 {[%clk
0:00:23]} 40. Nc5 {[%clk 0:00:30.1]} 40... Nh4+ {[%clk 0:00:19.7]} 41. Kh1
{[%clk 0:00:25.2]} 41... Rg8 {[%clk 0:00:08.2]} 42. Nxb7 {[%clk 0:00:18.5]}
42... Bf6 {[%clk 0:00:06.4]} 43. Nd6+ {[%clk 0:00:18.3]} 43... Kb8 {[%clk
0:00:05.5]} 44. Nc4 {[%clk 0:00:16.4]} 44... Nf3 {[%clk 0:00:04.6]} 45. Rh3
{[%clk 0:00:12.8]} 45... e4 {[%clk 0:00:04.8]} 46. Nd6 {[%clk 0:00:12.2]} 46...
Ng5 {[%clk 0:00:03.4]} 47. Rg3 {[%clk 0:00:11.7]} 47... Be5 {[%clk 0:00:03.4]}
48. Rg4 {[%clk 0:00:10.9]} 48... e3 {[%clk 0:00:03.1]} 49. Nc4 {[%clk
0:00:09.4]} 49... e2 {[%clk 0:00:03]} 50. Re1 {[%clk 0:00:09.4]} 50... Rh8+
{[%clk 0:00:02.6]} 51. Kg2 {[%clk 0:00:10.1]} 51... Bxc3 {[%clk 0:00:02.8]} 52.
Rxe2 {[%clk 0:00:10.1]} 52... Nf7 {[%clk 0:00:03.1]} 53. Nb6 {[%clk 0:00:09.8]}
53... Bg7 {[%clk 0:00:02.5]} 54. Rxg7 {[%clk 0:00:09.3]} 1-0

[Event "Early-Titled-Tuesday-Blitz-May-28-2024"]
[Site "Chess.com"]
[Date "2024.05.28"]
[Round "4"]
[White "noblerone"]
[Black "ajedrez1101"]
[Result "0-1"]
[WhiteElo "2525"]
[BlackElo "2414"]
[TimeControl "180+1"]
[EndTime "8:40:30 PDT"]
[Termination "ajedrez1101 won by checkmate"]

1. d4 {[%clk 0:02:52.9]} 1... b6 {[%clk 0:03:00.5]} 2. Nf3 {[%clk 0:02:40]} 2...
Bb7 {[%clk 0:03:01]} 3. Bg5 {[%clk 0:02:40.3]} 3... Nf6 {[%clk 0:02:59]} 4. Nbd2
{[%clk 0:02:40.5]} 4... e6 {[%clk 0:02:58.9]} 5. e3 {[%clk 0:02:40.9]} 5... Be7
{[%clk 0:02:58.8]} 6. Bd3 {[%clk 0:02:40.6]} 6... h6 {[%clk 0:02:58.6]} 7. Bh4
{[%clk 0:02:40.3]} 7... Nh5 {[%clk 0:02:57.5]} 8. Bxe7 {[%clk 0:02:39.2]} 8...
Qxe7 {[%clk 0:02:56.9]} 9. Ne5 {[%clk 0:02:32.7]} 9... Nf6 {[%clk 0:02:55.2]}
10. O-O {[%clk 0:02:31.2]} 10... d6 {[%clk 0:02:55.6]} 11. Nef3 {[%clk 0:02:22]}
11... Nbd7 {[%clk 0:02:55.5]} 12. c4 {[%clk 0:02:21.7]} 12... O-O {[%clk
0:02:54.4]} 13. a4 {[%clk 0:02:20.4]} 13... a5 {[%clk 0:02:53.7]} 14. Re1 {[%clk
0:02:17.6]} 14... e5 {[%clk 0:02:53.7]} 15. e4 {[%clk 0:02:03]} 15... exd4
{[%clk 0:02:41.4]} 16. Nxd4 {[%clk 0:02:02.9]} 16... Nc5 {[%clk 0:02:25.7]} 17.
Bc2 {[%clk 0:01:52.2]} 17... Qe5 {[%clk 0:02:11.5]} 18. N2f3 {[%clk 0:01:35.3]}
18... Qf4 {[%clk 0:02:10.8]} 19. Nb5 {[%clk 0:01:22.5]} 19... Rac8 {[%clk
0:01:56.8]} 20. e5 {[%clk 0:01:12.3]} 20... dxe5 {[%clk 0:01:10.8]} 21. Nxe5
{[%clk 0:01:08.4]} 21... Rfe8 {[%clk 0:01:10.8]} 22. Nd3 {[%clk 0:01:00.3]}
22... Qxc4 {[%clk 0:01:05.2]} 23. Rxe8+ {[%clk 0:00:46.8]} 23... Nxe8 {[%clk
0:01:03.5]} 24. Nxc5 {[%clk 0:00:40.7]} 24... Qxc5 {[%clk 0:01:02.9]} 25. Qg4
{[%clk 0:00:34.4]} 25... Qxc2 {[%clk 0:00:51.6]} 26. Re1 {[%clk 0:00:25.4]}
26... Qg6 {[%clk 0:00:47.8]} 27. Qh3 {[%clk 0:00:25.2]} 27... Nd6 {[%clk
0:00:41.4]} 28. Nd4 {[%clk 0:00:24.5]} 28... Re8 {[%clk 0:00:38.8]} 29. Rc1
{[%clk 0:00:20.6]} 29... Qg5 {[%clk 0:00:37.3]} 30. Rf1 {[%clk 0:00:18]} 30...
Qd2 {[%clk 0:00:36.4]} 31. Nf3 {[%clk 0:00:17.1]} 31... Qxb2 {[%clk 0:00:36.4]}
32. Nh4 {[%clk 0:00:16.5]} 32... Qf6 {[%clk 0:00:35.8]} 33. Qg3 {[%clk 0:00:16]}
33... Qg5 {[%clk 0:00:36.1]} 34. Qh3 {[%clk 0:00:16]} 34... Re4 {[%clk 0:00:35]}
35. Nf3 {[%clk 0:00:15.9]} 35... Qg4 {[%clk 0:00:35.1]} 36. Qxg4 {[%clk
0:00:16]} 36... Rxg4 {[%clk 0:00:36]} 37. Ne5 {[%clk 0:00:16.9]} 37... Rxa4
{[%clk 0:00:35.9]} 38. Rc1 {[%clk 0:00:16]} 38... c5 {[%clk 0:00:33.7]} 39. f3
{[%clk 0:00:15.9]} 39... c4 {[%clk 0:00:32.6]} 40. Rd1 {[%clk 0:00:14.6]} 40...
Nf5 {[%clk 0:00:28.4]} 41. Rd8+ {[%clk 0:00:14.4]} 41... Kh7 {[%clk 0:00:27.6]}
42. Rd7 {[%clk 0:00:12.2]} 42... Bc8 {[%clk 0:00:19.2]} 43. Rxf7 {[%clk
0:00:08.7]} 43... Be6 {[%clk 0:00:19]} 44. Rc7 {[%clk 0:00:07.4]} 44... Ra1+
{[%clk 0:00:17.5]} 45. Kf2 {[%clk 0:00:07.5]} 45... a4 {[%clk 0:00:17.5]} 46. g4
{[%clk 0:00:06.7]} 46... Nd4 {[%clk 0:00:17.3]} 47. h4 {[%clk 0:00:06.2]} 47...
a3 {[%clk 0:00:15.6]} 48. h5 {[%clk 0:00:06.4]} 48... a2 {[%clk 0:00:14.9]} 49.
Ng6 {[%clk 0:00:05.9]} 49... Rf1+ {[%clk 0:00:13.9]} 50. Kg3 {[%clk 0:00:05.1]}
50... a1=Q {[%clk 0:00:14.2]} 51. Nf8+ {[%clk 0:00:03.8]} 51... Kg8 {[%clk
0:00:13.9]} 52. Ng6 {[%clk 0:00:04.2]} 52... Rg1+ {[%clk 0:00:14]} 53. Kf4
{[%clk 0:00:04.5]} 53... Qc1+ {[%clk 0:00:13.8]} 54. Ke5 {[%clk 0:00:04.8]}
54... Nxf3+ {[%clk 0:00:13.3]} 55. Kxe6 {[%clk 0:00:03.6]} 55... Re1+ {[%clk
0:00:13.6]} 56. Kd7 {[%clk 0:00:03.5]} 56... Qd2+ {[%clk 0:00:12.9]} 57. Kc8
{[%clk 0:00:03.6]} 57... Re8+ {[%clk 0:00:13.5]} 58. Kb7 {[%clk 0:00:04.1]}
58... Qd5+ {[%clk 0:00:13.1]} 59. Kxb6 {[%clk 0:00:02.5]} 59... Rb8+ {[%clk
0:00:13]} 60. Ka7 {[%clk 0:00:02.5]} 60... Qa8# {[%clk 0:00:12.8]} 0-1